fUST/lending_fUST_20241214
["ID","MTS","AMOUNT","RATE_DAILY","PERIOD"]
[345280300,1734133838366,-500.0,0.00027671,7]
[345280302,1734133838375,-500.0,0.00027671,7]
[345280304,1734133838384,-607.2,0.00027671,7]
[345280306,1734133838393,-585.18,0.00027671,7]
[345280308,1734133838403,-500.0,0.00027671,7]
[345280310,1734133838412,-500.0,0.00027671,7]
[345280312,1734133838421,-500.0,0.00027671,7]
[345280314,1734133838430,-266.91,0.00027671,7]
[345280316,1734133838439,-500.0,0.00027671,7]
[345280318,1734133838448,-500.0,0.00027671,7]
[345280320,1734133838457,-687.20089121,0.00027671,7]
[345280332,1734133838563,-539.10910879,0.00027671,7]
[345280334,1734133838572,-500.0,0.00027671,7]
[345280336,1734133838582,-566.96,0.00027671,7]
[345280338,1734133838591,-500.0,0.00027671,7]
[345280340,1734133838601,-317.17,0.00027671,7]
[345280342,1734133838610,-500.0,0.00027671,7]
[345280344,1734133838619,-500.0,0.00027671,7]
[345280346,1734133838628,-500.0,0.00027671,7]
[345280348,1734133838637,-500.0,0.00027671,7]
[345280350,1734133838646,-500.0,0.00027671,7]
[345280352,1734133838656,-500.0,0.00027671,7]
[345280354,1734133838665,-500.0,0.00027671,7]
[345280356,1734133838674,-1077.08,0.00027671,7]
[345280358,1734133838683,-500.0,0.00027671,7]
[345280360,1734133838692,-500.0,0.00027671,7]
[345280362,1734133838701,-500.0,0.00027671,7]
[345280364,1734133838710,-554.1,0.00027671,7]
[345280366,1734133838724,-159.63322233,0.00027671,7]
[345280368,1734133838735,-500.0,0.00027671,7]
[345280370,1734133838744,-503.17148162,0.00027671,7]
[345280372,1734133838754,-500.0,0.00027671,7]
[345280374,1734133838765,-500.0,0.00027671,7]
[345280376,1734133838774,-500.0,0.00027671,7]
[345280378,1734133838783,-500.0,0.00027671,7]
[345280380,1734133838794,-758.82,0.00027671,7]
[345280382,1734133838803,-500.0,0.00027671,7]
[345280384,1734133838812,-505.39960832,0.00027671,7]
[345280386,1734133838821,-500.0,0.00027671,7]
[345280388,1734133838831,-500.0,0.00027671,7]
[345280390,1734133838840,-915.97,0.00027671,7]
[345280392,1734133838850,-500.0,0.00027671,7]
[345280394,1734133838859,-500.0,0.00027671,7]
[345280396,1734133838868,-500.0,0.00027671,7]
[345280398,1734133838877,-500.0,0.00027671,7]
[345280400,1734133838886,-1622.05,0.00027671,7]
[345280402,1734133838896,-500.0,0.00027671,7]
[345280404,1734133838905,-500.0,0.00027671,7]
[345280406,1734133838915,-500.0,0.00027671,7]
[345280408,1734133838924,-500.0,0.00027671,7]
[345280410,1734133838933,-500.0,0.00027671,7]
[345280412,1734133838942,-500.0,0.00027671,7]
[345280414,1734133838952,-341.1,0.00027671,7]
[345280416,1734133838961,-500.0,0.00027671,7]
[345280418,1734133838970,-717.09,0.00027671,7]
[345280421,1734133838980,-500.0,0.00027671,7]
[345280423,1734133838990,-515.18369994,0.00027671,7]
[345280425,1734133838999,-500.0,0.00027671,7]
[345280427,1734133839008,-606.69740537,0.00027671,7]
[345280429,1734133839017,-500.0,0.00027671,7]
[345280431,1734133839026,-500.0,0.00027671,7]
[345280433,1734133839036,-500.0,0.00027671,7]
[345280435,1734133839045,-500.0,0.00027671,7]
[345280437,1734133839054,-1431.53,0.00027671,7]
[345280439,1734133839063,-500.0,0.00027671,7]
[345280441,1734133839073,-500.0,0.00027671,7]
[345280443,1734133839082,-208.84,0.00027671,7]
[345280445,1734133839092,-500.0,0.00027671,7]
[345280447,1734133839101,-502.76799052,0.00027671,7]
[345280449,1734133839110,-500.0,0.00027671,7]
[345280451,1734133839119,-563.14255711,0.00027671,7]
[345280453,1734133839128,-500.0,0.00027671,7]
[345280455,1734133839137,-500.0,0.00027671,7]
[345280457,1734133839146,-500.0,0.00027671,7]
[345280459,1734133839156,-500.0,0.00027671,7]
[345280461,1734133839166,-500.0,0.00027671,7]
[345280463,1734133839175,-514.70368746,0.00027671,7]
[345280465,1734133839184,-500.0,0.00027671,7]
[345280467,1734133839192,-500.0,0.00027671,7]
[345280469,1734133839201,-500.0,0.00027671,7]
[345280471,1734133839210,-600.72,0.00027671,7]
[345280473,1734133839220,-886.26,0.00027671,7]
[345280475,1734133839229,-500.0,0.00027671,7]
[345280477,1734133839238,-500.0,0.00027671,7]
[345280479,1734133839247,-500.0,0.00027671,7]
[345280481,1734133839256,-500.0,0.00027671,7]
[345280483,1734133839265,-500.0,0.00027671,7]
[345280485,1734133839274,-500.0,0.00027671,7]
[345280487,1734133839283,-500.0,0.00027671,7]
[345280489,1734133839293,-500.0,0.00027671,7]
[345280491,1734133839301,-7720.487527,0.00027671,7]
[345280493,1734133839314,-268.95,0.00027671,7]
[345280686,1734133846141,-169.40642,0.0002643,2]
[345280688,1734133846151,-629.01,0.00027397,7]
[345280690,1734133846160,-843.72,0.00027397,7]
[345280692,1734133846170,-500.0,0.00027397,7]
[345280694,1734133846180,-559.83,0.00027397,7]
[345280695,1734133846189,-1262.702473,0.00027671,7]
[345280696,1734133846198,-878.71,0.00027671,7]
[345280697,1734133846208,-500.0,0.00027671,7]
[345280698,1734133846217,-500.0,0.00027671,7]
[345280699,1734133846226,-500.0,0.00027671,7]
[345280700,1734133846235,-500.0,0.00027671,7]
[345280701,1734133846245,-1000.0,0.00027671,7]
[345280702,1734133846254,-1829.04,0.00027671,7]
[345280703,1734133846263,-500.0,0.00027671,7]
[345280704,1734133846272,-639.28487624,0.00027671,7]
[345280705,1734133846281,-500.0,0.00027671,7]
[345280706,1734133846290,-500.0,0.00027671,7]
[345280707,1734133846300,-3135.49,0.00027671,7]
[345280708,1734133846309,-500.0,0.00027671,7]
[345280709,1734133846318,-500.0,0.00027671,7]
[345280710,1734133846327,-500.0,0.00027671,7]
[345280711,1734133846336,-505.17639619,0.00027671,7]
[345280712,1734133846345,-500.0,0.00027671,7]
[345280713,1734133846354,-7168.19,0.00027671,5]
[345280714,1734133846364,-500.0,0.00027671,7]
[345280715,1734133846373,-500.0,0.00027671,7]
[345280716,1734133846382,-500.0,0.00027671,7]
[345280717,1734133846391,-500.0,0.00027671,7]
[345280718,1734133846400,-500.0,0.00027671,7]
[345280719,1734133846409,-500.0,0.00027671,7]
[345280720,1734133846418,-500.0,0.00027671,7]
[345280721,1734133846427,-500.0,0.00027671,7]
[345280722,1734133846436,-500.0,0.00027671,7]
[345280723,1734133846446,-586.92,0.00027671,7]
[345280724,1734133846456,-500.0,0.00027671,7]
[345280725,1734133846465,-500.0,0.00027671,7]
[345280726,1734133846474,-500.0,0.00027671,7]
[345280727,1734133846483,-500.0,0.00027671,7]
[345280728,1734133846492,-544.5,0.00027671,7]
[345280729,1734133846502,-585.54,0.00027671,7]
[345280730,1734133846511,-500.0,0.00027671,7]
[345280731,1734133846520,-625.34,0.00027671,7]
[345280732,1734133846529,-1600.94,0.00027671,7]
[345280733,1734133846538,-500.0,0.00027671,7]
[345280734,1734133846548,-500.0,0.00027671,7]
[345280735,1734133846557,-710.13,0.00027671,7]
[345280736,1734133846566,-500.0,0.00027671,7]
[345280737,1734133846575,-500.0,0.00027671,7]
[345280738,1734133846584,-500.0,0.00027671,7]
[345280739,1734133846594,-426.43277754,0.00027671,7]
[345280740,1734133846603,-173.68977507,0.00027671,7]
[345280741,1734133846612,-1356.42,0.00027671,7]
[345280742,1734133846621,-508.37779385,0.00027671,7]
[345280743,1734133846631,-500.0,0.00027671,7]
[345280744,1734133846640,-500.0,0.00027671,7]
[345280745,1734133846650,-500.0,0.00027671,7]
[345280746,1734133846659,-500.0,0.00027671,7]
[345280747,1734133846669,-500.0,0.00027671,7]
[345280748,1734133846677,-500.0,0.00027671,7]
[345280749,1734133846686,-591.3,0.00027671,7]
[345280750,1734133846695,-500.0,0.00027671,7]
[345280751,1734133846704,-814.31,0.00027671,7]
[345280752,1734133846713,-1780.39,0.00027671,7]
[345280753,1734133846727,-500.0,0.00027671,7]
[345280754,1734133846736,-500.0,0.00027671,7]
[345280755,1734133846746,-500.0,0.00027671,7]
[345280756,1734133846755,-500.0,0.00027671,7]
[345280757,1734133846765,-500.0,0.00027671,7]
[345280758,1734133846774,-500.0,0.00027671,7]
[345280759,1734133846784,-1750.72,0.00027671,7]
[345280760,1734133846796,-692.77,0.00027671,7]
[345280761,1734133846805,-578.81,0.00027671,7]
[345280762,1734133846814,-500.0,0.00027671,7]
[345280763,1734133846824,-864.17,0.00027671,7]
[345280764,1734133846833,-1324.43,0.00027671,7]
[345280765,1734133846843,-500.0,0.00027671,7]
[345280766,1734133846852,-500.0,0.00027671,7]
[345280767,1734133846861,-585.1,0.00027671,7]
[345280768,1734133846870,-500.0,0.00027671,7]
[345280769,1734133846879,-500.0,0.00027671,7]
[345280770,1734133846888,-500.0,0.00027671,7]
[345280771,1734133846898,-500.0,0.00027671,7]
[345280772,1734133846907,-500.0,0.00027671,7]
[345280773,1734133846916,-500.0,0.00027671,7]
[345280774,1734133846925,-191.01449638,0.00027671,7]
[345280775,1734133846934,-500.0,0.00027671,7]
[345280776,1734133846943,-500.0,0.00027671,7]
[345280777,1734133846953,-500.0,0.00027671,7]
[345280778,1734133846962,-500.0,0.00027671,7]
[345280779,1734133846971,-500.0,0.00027671,7]
[345280780,1734133846980,-500.0,0.00027671,7]
[345280781,1734133846989,-561.83,0.00027671,7]
[345280782,1734133846998,-500.0,0.00027671,7]
[345280783,1734133847007,-500.0,0.00027671,7]
[345280784,1734133847016,-507.36957486,0.00027671,7]
[345280785,1734133847025,-1236.86,0.00027671,7]
[345280786,1734133847034,-746.05,0.00027671,7]
[345280787,1734133847043,-500.0,0.00027671,7]
[345280788,1734133847052,-500.0,0.00027671,7]
[345280789,1734133847061,-500.0,0.00027671,7]
[345280790,1734133847071,-500.0,0.00027671,7]
[345280791,1734133847080,-500.0,0.00027671,7]
[345280792,1734133847089,-500.0,0.00027671,7]
[345280793,1734133847098,-1015.94,0.00027671,7]
[345280794,1734133847107,-312.49386943,0.00027671,7]
[345280795,1734133847116,-500.0,0.00027671,7]
[345280796,1734133847126,-1129.08,0.00027671,7]
[345280797,1734133847136,-629.01,0.00027671,7]
[345280798,1734133847145,-843.72,0.00027671,7]
[345280799,1734133847155,-371.4554236,0.00027671,7]
[345280800,1734133847164,-559.83,0.00027671,7]
[345280801,1734133847173,-500.0,0.00027673,5]
[345280802,1734133847183,-500.0,0.00027673,5]
[345280803,1734133847192,-464.96,0.000278,31]
[345280804,1734133847202,-464.96,0.000278,31]
[345280805,1734133847212,-464.96,0.000278,31]
[345280806,1734133847221,-464.96,0.000278,31]
[345280807,1734133847231,-464.96,0.000278,31]
[345280808,1734133847243,-464.96,0.000278,31]
[345280809,1734133847252,-464.96,0.000278,31]
[345280810,1734133847261,-464.96,0.000278,31]
[345280811,1734133847270,-464.96,0.000278,31]
[345280812,1734133847279,-464.96,0.000278,31]
[345280813,1734133847289,-464.96,0.000278,31]
[345280814,1734133847298,-464.96,0.000278,31]
[345280815,1734133847308,-1051.19326182,0.00027845,2]
[345280816,1734133847318,-533.0,0.00027886,2]
[345280817,1734133847328,-1266.87,0.00027886,2]
[345280818,1734133847338,-2370.0,0.00027886,2]
[345280819,1734133847348,-187.0,0.000279,2]
[345280820,1734133847359,-300.0,0.000279,13]
[345280821,1734133847371,-648.712,0.00027909,15]
[345280822,1734133847381,-533.95377554,0.00027945,7]
[345280823,1734133847390,-500.0,0.00027945,7]
[345280824,1734133847399,-500.0,0.00027945,7]
[345280825,1734133847412,-504.07721878,0.00027945,7]
[345280826,1734133847421,-500.0,0.00027945,7]
[345280827,1734133847430,-500.0,0.00027945,7]
[345280828,1734133847441,-479.18501888,0.00027945,7]
[345280829,1734133847450,-504.65893058,0.00027945,7]
[345280830,1734133847459,-500.0,0.00027945,7]
[345280831,1734133847469,-500.0,0.00027945,7]
[345280832,1734133847478,-500.0,0.00027945,7]
[345280833,1734133847489,-500.0,0.00027945,7]
[345280834,1734133847502,-500.0,0.00027945,7]
[345280835,1734133847511,-319.01,0.00027945,7]
[345280836,1734133847520,-500.0,0.00027945,7]
[345280837,1734133847530,-777.57,0.00027945,7]
[345280838,1734133847539,-500.0,0.00027945,7]
[345280839,1734133847551,-500.0,0.00027945,7]
[345280840,1734133847563,-500.0,0.00027945,7]
[345280841,1734133847574,-151.35475945,0.00027945,7]
[345280842,1734133847584,-500.0,0.00027945,7]
[345280843,1734133847594,-500.0,0.00027945,7]
[345280844,1734133847603,-500.0,0.00027945,7]
[345280845,1734133847613,-500.0,0.00027945,7]
[345280846,1734133847622,-500.0,0.00027945,7]
[345280847,1734133847632,-500.0,0.00027945,7]
[345280848,1734133847642,-500.0,0.00027945,7]
[345280849,1734133847652,-500.0,0.00027945,7]
[345280850,1734133847661,-500.0,0.00027945,7]
[345280851,1734133847671,-500.0,0.00027945,7]
[345280852,1734133847680,-500.0,0.00027945,7]
[345280853,1734133847690,-500.0,0.00027945,7]
[345280854,1734133847699,-500.0,0.00027945,7]
[345280855,1734133847709,-500.0,0.00027945,7]
[345280856,1734133847721,-500.0,0.00027945,7]
[345280857,1734133847734,-500.0,0.00027945,7]
[345280858,1734133847745,-500.0,0.00027945,7]
[345280859,1734133847755,-531.12295364,0.00027945,7]
[345280860,1734133847766,-500.0,0.00027945,7]
[345280861,1734133847775,-500.0,0.00027945,7]
[345280862,1734133847785,-500.0,0.00027945,7]
[345280863,1734133847795,-500.0,0.00027945,7]
[345280864,1734133847805,-500.0,0.00027945,7]
[345280865,1734133847815,-500.0,0.00027945,7]
[345280866,1734133847824,-421.0669328,0.00027945,7]
[345280867,1734133847833,-500.0,0.00027945,7]
[345280868,1734133847843,-500.0,0.00027945,7]
[345280869,1734133847852,-500.0,0.00027945,7]
[345280870,1734133847862,-500.0,0.00027945,7]
[345280871,1734133847873,-819.14,0.00027945,7]
[345280872,1734133847883,-733.36,0.00027945,7]
[345280873,1734133847892,-500.0,0.00027945,7]
[345280874,1734133847988,-500.0,0.00027945,7]
[345280875,1734133847998,-1537.24,0.00027945,7]
[345280876,1734133848008,-500.0,0.00027945,7]
[345280877,1734133848018,-500.0,0.00027945,7]
[345280878,1734133848028,-500.0,0.00027945,7]
[345280879,1734133848038,-267.20788016,0.00027945,7]
[345280880,1734133848048,-500.0,0.00027945,7]
[345280881,1734133848058,-500.0,0.00027945,7]
[345280882,1734133848068,-500.0,0.00027945,7]
[345280883,1734133848078,-740.85,0.00027945,7]
[345280884,1734133848087,-500.0,0.00027945,7]
[345280885,1734133848097,-329.38662786,0.00027945,7]
[345280886,1734133848107,-500.0,0.00027945,7]
[345280887,1734133848116,-500.0,0.00027945,7]
[345280888,1734133848126,-500.0,0.00027945,7]
[345280889,1734133848136,-500.0,0.00027945,7]
[345280890,1734133848146,-607.2,0.00027945,7]
[345280891,1734133848155,-585.18,0.00027945,7]
[345280892,1734133848164,-500.0,0.00027945,7]
[345280893,1734133848175,-346.52505358,0.00027945,7]
[345280894,1734133848189,-382.93515698,0.00027945,7]
[345280895,1734133848203,-266.91,0.00027945,7]
[345280896,1734133848213,-500.0,0.00027945,7]
[345280897,1734133848223,-500.0,0.00027945,7]
[345280898,1734133848232,-1226.31,0.00027945,7]
[345280899,1734133848243,-500.0,0.00027945,7]
[345280900,1734133848254,-566.96,0.00027945,7]
[345280901,1734133848264,-500.0,0.00027945,7]
[345280902,1734133848275,-500.0,0.00027945,7]
[345280903,1734133848285,-500.0,0.00027945,7]
[345280904,1734133848296,-500.0,0.00027945,7]
[345280905,1734133848305,-500.0,0.00027945,7]
[345280906,1734133848315,-500.0,0.00027945,7]
[345280907,1734133848325,-518.74736347,0.00027945,7]
[345280908,1734133848335,-500.0,0.00027945,7]
[345280909,1734133848345,-1077.08,0.00027945,7]
[345280910,1734133848355,-500.0,0.00027945,7]
[345280911,1734133848364,-500.0,0.00027945,7]
[345280912,1734133848374,-500.0,0.00027945,7]
[345280913,1734133848384,-554.1,0.00027945,7]
[345280914,1734133848394,-500.0,0.00027945,7]
[345280915,1734133848403,-500.0,0.00027945,7]
[345280916,1734133848412,-518.35555742,0.00027945,7]
[345280917,1734133848422,-500.0,0.00027945,7]
[345280918,1734133848433,-500.0,0.00027945,7]
[345280919,1734133848442,-758.82,0.00027945,7]
[345280920,1734133848452,-500.0,0.00027945,7]
[345280921,1734133848461,-206.39824002,0.00027945,7]
[345280922,1734133848471,-500.0,0.00027945,7]
[345280923,1734133848481,-915.97,0.00027945,7]
[345280924,1734133848492,-413.14,0.00027945,7]
[345280925,1734133848502,-500.0,0.00027945,7]
[345280926,1734133848512,-531.91783084,0.00027945,7]
[345280927,1734133848522,-500.0,0.00027945,7]
[345280928,1734133848532,-1622.05,0.00027945,7]
[345280929,1734133848542,-500.0,0.00027945,7]
[345280930,1734133848551,-500.0,0.00027945,7]
[345280931,1734133848562,-500.0,0.00027945,7]
[345280932,1734133848571,-500.0,0.00027945,7]
[345280933,1734133848581,-500.0,0.00027945,7]
[345280934,1734133848591,-500.0,0.00027945,7]
[345280935,1734133848601,-500.0,0.00027945,7]
[345280936,1734133848610,-717.09,0.00027945,7]
[345280937,1734133848620,-367.72,0.00027945,7]
[345280938,1734133848629,-500.0,0.00027945,7]
[345280939,1734133848639,-500.0,0.00027945,7]
[345280940,1734133848648,-500.0,0.00027945,7]
[345280941,1734133848658,-500.0,0.00027945,7]
[345280942,1734133848668,-346.38151626,0.00027945,7]
[345280943,1734133848679,-1431.53,0.00027945,7]
[345280944,1734133848689,-500.0,0.00027945,7]
[345280945,1734133848698,-500.0,0.00027945,7]
[345280946,1734133848708,-500.0,0.00027945,7]
[345280947,1734133848720,-500.0,0.00027945,7]
[345280948,1734133848731,-280.91435514,0.00027945,7]
[345280949,1734133848743,-500.0,0.00027945,7]
[345280950,1734133848754,-500.0,0.00027945,7]
[345280951,1734133848766,-500.0,0.00027945,7]
[345280952,1734133848776,-500.0,0.00027945,7]
[345280953,1734133848785,-425.62383927,0.00027945,7]
[345280954,1734133848794,-500.0,0.00027945,7]
[345280955,1734133848806,-500.0,0.00027945,7]
[345280956,1734133848815,-600.72,0.00027945,7]
[345280957,1734133848824,-886.26,0.00027945,7]
[345280958,1734133848835,-509.44238584,0.00027945,7]
[345280959,1734133848844,-500.0,0.00027945,7]
[345280960,1734133848853,-500.0,0.00027945,7]
[345280961,1734133848863,-500.0,0.00027945,7]
[345280962,1734133848873,-500.0,0.00027945,7]
[345280963,1734133848883,-500.0,0.00027945,7]
[345280964,1734133848894,-9252.14,0.00027945,7]
[345280965,1734133848904,-878.71,0.00027945,7]
[345280966,1734133848914,-500.0,0.00027945,7]
[345280967,1734133848924,-500.0,0.00027945,7]
[345280968,1734133848935,-500.0,0.00027945,7]
[345280969,1734133848945,-500.0,0.00027945,7]
[345280970,1734133848956,-1000.0,0.00027945,7]
[345280971,1734133848967,-500.0,0.00027945,7]
[345280972,1734133848978,-1829.04,0.00027945,7]
[345280973,1734133848988,-500.0,0.00027945,7]
[345280974,1734133848998,-500.0,0.00027945,7]
[345280975,1734133849007,-3135.49,0.00027945,7]
[345280976,1734133849017,-500.0,0.00027945,7]
[345280977,1734133849026,-500.0,0.00027945,7]
[345280978,1734133849036,-500.0,0.00027945,7]
[345280979,1734133849046,-500.0,0.00027945,7]
[345280980,1734133849056,-7168.19,0.00027945,5]
[345280981,1734133849066,-500.0,0.00027945,7]
[345280982,1734133849076,-500.0,0.00027945,7]
[345280983,1734133849086,-500.0,0.00027945,7]
[345280984,1734133849095,-500.0,0.00027945,7]
[345280985,1734133849104,-618.00441462,0.00027945,7]
[345280986,1734133849114,-500.0,0.00027945,7]
[345280987,1734133849124,-500.0,0.00027945,7]
[345280988,1734133849133,-182.8120352,0.00027945,7]
[345280989,1734133849143,-500.0,0.00027945,7]
[345280990,1734133849152,-500.0,0.00027945,7]
[345280991,1734133849161,-500.0,0.00027945,7]
[345280992,1734133849170,-494.0,0.00027945,7]
[345280993,1734133849180,-500.0,0.00027945,7]
[345280994,1734133849189,-544.5,0.00027945,7]
[345280995,1734133849198,-585.54,0.00027945,7]
[345280996,1734133849208,-500.0,0.00027945,7]
[345280997,1734133849218,-625.34,0.00027945,7]
[345280998,1734133849228,-1600.94,0.00027945,7]
[345280999,1734133849238,-500.0,0.00027945,7]
[345281000,1734133849248,-500.0,0.00027945,7]
[345281001,1734133849257,-710.13,0.00027945,7]
[345281002,1734133849267,-500.0,0.00027945,7]
[345281003,1734133849277,-500.0,0.00027945,7]
[345281004,1734133849287,-500.0,0.00027945,7]
[345281005,1734133849297,-1356.42,0.00027945,7]
[345281006,1734133849307,-500.0,0.00027945,7]
[345281007,1734133849317,-500.0,0.00027945,7]
[345281008,1734133849328,-500.0,0.00027945,7]
[345281009,1734133849337,-438.13408204,0.00027945,7]
[345281010,1734133849347,-500.0,0.00027945,7]
[345281011,1734133849356,-500.0,0.00027945,7]
[345281012,1734133849367,-591.3,0.00027945,7]
[345281013,1734133849376,-500.0,0.00027945,7]
[345281014,1734133849386,-814.31,0.00027945,7]
[345281015,1734133849396,-1780.39,0.00027945,7]
[345281016,1734133849406,-500.0,0.00027945,7]
[345281017,1734133849415,-500.0,0.00027945,7]
[345281018,1734133849425,-500.0,0.00027945,7]
[345281019,1734133849434,-500.0,0.00027945,7]
[345281020,1734133849443,-500.0,0.00027945,7]
[345281021,1734133849452,-500.0,0.00027945,7]
[345281022,1734133849461,-1750.72,0.00027945,7]
[345281023,1734133849471,-692.77,0.00027945,7]
[345281024,1734133849480,-578.81,0.00027945,7]
[345281025,1734133849489,-500.0,0.00027945,7]
[345281026,1734133849498,-864.17,0.00027945,7]
[345281027,1734133849508,-1324.43,0.00027945,7]
[345281028,1734133849518,-405.43544804,0.00027945,7]
[345281029,1734133849527,-500.0,0.00027945,7]
[345281030,1734133849537,-585.1,0.00027945,7]
[345281031,1734133849546,-500.0,0.00027945,7]
[345281032,1734133849556,-500.0,0.00027945,7]
[345281033,1734133849566,-500.0,0.00027945,7]
[345281034,1734133849575,-183.49,0.00027945,7]
[345281035,1734133849585,-500.0,0.00027945,7]
[345281036,1734133849594,-500.0,0.00027945,7]
[345281037,1734133849604,-500.0,0.00027945,7]
[345281038,1734133849613,-500.0,0.00027945,7]
[345281039,1734133849623,-500.0,0.00027945,7]
[345281040,1734133849632,-500.0,0.00027945,7]
[345281041,1734133849642,-375.84942,0.00027945,7]
[345281042,1734133849651,-500.0,0.00027945,7]
[345281043,1734133849660,-561.83,0.00027945,7]
[345281044,1734133849670,-500.0,0.00027945,7]
[345281045,1734133849679,-500.0,0.00027945,7]
[345281046,1734133849689,-1236.86,0.00027945,7]
[345281047,1734133849699,-746.05,0.00027945,7]
[345281048,1734133849707,-500.0,0.00027945,7]
[345281049,1734133849718,-500.0,0.00027945,7]
[345281050,1734133849731,-500.0,0.00027945,7]
[345281051,1734133849742,-500.0,0.00027945,7]
[345281052,1734133849752,-500.0,0.00027945,7]
[345281053,1734133849762,-370.89327554,0.00027945,7]
[345281054,1734133849772,-1015.94,0.00027945,7]
[345281055,1734133849781,-193.08116138,0.00027945,7]
[345281056,1734133849791,-1129.08,0.00027945,7]
[345281057,1734133849802,-629.01,0.00027945,7]
[345281058,1734133849813,-843.72,0.00027945,7]
[345281059,1734133849822,-559.83,0.00027945,7]
[345281060,1734133849832,-500.0,0.00027973,5]
[345281061,1734133849842,-500.0,0.00027973,5]
[345281062,1734133849852,-13969.72909997,0.00028,7]
[345281063,1734133849862,-12251.73,0.00028,2]
[345281064,1734133849871,-368.39,0.00028,30]
[345281065,1734133849881,-320064.21706053,0.00028,2]
[345281066,1734133850078,-74097.34888503,0.00028,2]
[345281067,1734133850095,-3329.99999999,0.00028,2]
[345281069,1734134308221,264.704728,0.00013973,2]
[345281125,1734135032606,-264.704728,0.00020447,2]
[345281127,1734135032616,-207.39489595,0.00021,2]
[345281129,1734135032627,-161.0,0.00022,2]
[345281130,1734135032636,-533.0,0.00024897,2]
[345281133,1734135032645,-2036.72,0.00024897,2]
[345281134,1734135032654,-5.90617674,0.00025069,2]
[345281141,1734135032709,-163.32558326,0.00025069,2]
[345281143,1734135032719,-212.74538,0.00025402,2]
[345281145,1734135032729,-587.1690788,0.00025542,2]
[345281147,1734135032738,-342.575973,0.00025715,2]
[345281149,1734135032748,-300.0,0.00026126,2]
[345281151,1734135032758,-300.0,0.00026126,2]
[345281153,1734135032768,-367.82491185,0.00026126,2]
[345281155,1734135032777,-5608.02433421,0.00026127,2]
[345281191,1734135038289,-314.74,0.00026127,2]
[345281198,1734135038344,-1865.34059203,0.00026127,2]
[345281330,1734135040383,-455.23979383,0.00026127,2]
[345281331,1734135040440,-854.64194543,0.00026127,2]
[345281332,1734135040450,-3763.6648492,0.00026212,2]
[345281333,1734135040458,-580.449,0.000266,2]
[345281334,1734135040467,-264.704728,0.00026921,2]
[345281335,1734135040476,-666.0,0.00027297,2]
[345281336,1734135040486,-1187.87201939,0.00027297,2]
[345281337,1734135040494,-1000.0,0.000273,2]
[345281338,1734135040503,-626.63237855,0.00027373,2]
[345281339,1734135040511,-500.0,0.00027373,2]
[345281340,1734135040519,-497.17990278,0.00027373,2]
[345281341,1734135040528,-500.0,0.00027373,2]
[345281342,1734135040536,-217.23087525,0.00027373,2]